[Event "WYCC U16 Girls 2019"]
[Site "Mumbai"]
[Date "2019.10.10"]
[Round "9.4"]
[White "Ciolacu, Alessia-Mihaela"]
[Black "Loskutova, Viktoriya"]
[Result "1/2-1/2"]
[ECO "A46"]
[WhiteElo "2095"]
[BlackElo "2149"]
[Annotator "NA"]
[PlyCount "88"]
[EventDate "2019.10.02"]
[EventType "swiss"]
[EventCountry "IND"]
[SourceTitle "playchess.com"]
[Source "ChessBase"]
[SourceQuality "1"]
[TimeControl "5400+30"]

1. d4 {[%emt 0:00:00]} Nf6 {[%emt 0:00:00]} 2. Nf3 {[%emt 0:00:00]} e6 {[%emt 0:00:00]} 3. Bg5 {[%emt 0:00:00]} h6 {[%emt 0:00:00]} 4. Bxf6 {[%emt 0:00:46]} Qxf6 {[%emt 0:01:09]} 5. e4 {[%emt 0:00:11]} d6 {[%emt 0:01:43]} 6. Bd3 {[%emt 0:01:12]} c5 {[%emt 0:21:25]} 7. c3 {[%emt 0:13:46]} Nd7 {[%emt 0:05:52]} 8. O-O {[%emt 0:01:18]} Qd8 {[%emt 0:05:48]} 9. Re1 {[%emt 0:03:38]} Be7 {[%emt 0:01:28]} 10. Nbd2 {[%emt 0:03:40]} Qc7 {[%emt 0:06:10]} 11. a4 {[%emt 0:03:01]} O-O {[%emt 0:07:22]} 12. Nc4 {[%emt 0:12:05]} Rd8 {[%emt 0:16:31]} 13. Qe2 {[%emt 0:05:13]} Nf8 {[%emt 0:03:47]} 14. Ne3 {[%emt 0:17:31]} Bd7 {[%emt 0:09:44]} 15. Rec1 {[%emt 0:19:50]} Rac8 {[%emt 0:02:31]} 16. dxc5 {[%emt 0:02:23]} Qxc5 {[%emt 0:01:10]} 17. b4 {[%emt 0:02:04]} Qc7 {[%emt 0:01:09]} 18. a5 {[%emt 0:05:26]} Be8 {[%emt 0:05:49]} 19. Nd4 {[%emt 0:01:52]} Bf6 {[%emt 0:02:02]} 20. Qd2 {[%emt 0:01:26]} Bg5 {[%emt 0:03:28]} 21. g3 {[%emt 0:01:34]} Ng6 {[%emt 0:02:44]} 22. f4 {[%emt 0:02:29]} Be7 {[%emt 0:00:32]} 23. Nb5 {[%emt 0:00:56]} Qb8 {[%emt 0:00:29]} 24. Qe2 {[%emt 0:01:04]} Bf8 {[%emt 0:00:32]} 25. Rc2 {[%emt 0:00:20]} Ne7 {[%emt 0:00:17]} 26. Rac1 {[%emt 0:00:37]} a6 {[%emt 0:00:42]} 27. Nd4 {[%emt 0:00:08]} Nc6 {[%emt 0:00:27]} 28. Nf3 {[%emt 0:00:55]} Na7 {[%emt 0:00:37]} 29. Kg2 {[%emt 0:00:26]} Bc6 {[%emt 0:00:12]} 30. Nc4 {[%emt 0:00:26]} d5 {[%emt 0:00:16]} 31. Nb6 {[%emt 0:00:21]} dxe4 {[%emt 0:00:34]} 32. Bxe4 {[%emt 0:00:07]} Rc7 {[%emt 0:00:32]} 33. Ne5 {[%emt 0:00:45]} Bxe4+ {[%emt 0:00:16]} 34. Qxe4 {[%emt 0:00:01]} Nc8 {[%emt 0:00:13]} 35. Nec4 {[%emt 0:01:13]} Nxb6 36. Nxb6 Rd6 {[%emt 0:01:06]} 37. Re1 {[%emt 0:01:09]} Rdc6 {[%emt 0:01:00]} 38. Rec1 {[%emt 0:00:29]} Qd8 {[%emt 0:00:31]} 39. Qe2 {[%emt 0:00:26]} Qf6 {[%emt 0:00:23]} 40. Qd2 {[%emt 0:00:39]} Rd6 {[%emt 0:00:38]} 41. Qe2 {[%emt 0:00:00]} Rdc6 {[%emt 0:00:00]} 42. Qd3 {[%emt 0:00:00]} Rd6 {[%emt 0:00:00]} 43. Qe2 {[%emt 0:00:00]} Rdc6 {[%emt 0:00:00]} 44. Qd3 {[%emt 0:00:00]} Rd6 {[%emt 0:00:00]} 1/2-1/2

[Event "WYCC U16 Girls 2019"]
[Site "Mumbai"]
[Date "2019.10.10"]
[Round "9.5"]
[White "Hajiyeva, Laman"]
[Black "Srdanovic, Jovana"]
[Result "1-0"]
[ECO "A01"]
[WhiteElo "2038"]
[BlackElo "2100"]
[Annotator "ChessBase"]
[PlyCount "57"]
[EventDate "2019.10.02"]
[EventType "swiss"]
[EventCountry "IND"]
[SourceTitle "playchess.com"]
[Source "ChessBase"]
[SourceQuality "1"]
[TimeControl "5400+30"]

1. b3 {[%emt 0:00:00]} Nf6 {[%emt 0:01:15]} 2. Bb2 {[%emt 0:00:00]} c5 {[%emt 0:02:15]} 3. e3 {[%emt 0:03:27]} Nc6 {[%emt 0:01:08]} 4. f4 {[%emt 0:01:58]} d5 {[%emt 0:00:32]} 5. Nf3 {[%emt 0:03:10]} Bf5 {[%emt 0:01:47]} 6. Bb5 {[%emt 0:02:11]} Qb6 {[%emt 0:12:17]} 7. a4 {[%emt 0:08:38]} g6 {[%emt 0:09:01]} 8. Nc3 {[%emt 0:10:28]} d4 {[%emt 0:15:09]} 9. exd4 {[%emt 0:05:24]} cxd4 {[%emt 0:00:34]} 10. Ne2 {[%emt 0:07:18]} d3 {[%emt 0:02:27]} 11. cxd3 {[%emt 0:05:20]} Bg7 {[%emt 0:03:04]} 12. Bd4 {[%emt 0:06:00]} Qc7 {[%emt 0:01:42]} 13. Rc1 {[%emt 0:01:03]} O-O {[%emt 0:07:34]} 14. Ne5 {[%emt 0:02:14]} Bd7 {[%emt 0:02:11]} 15. O-O {[%emt 0:01:46]} Nd5 {[%emt 0:03:46]} 16. Nxd7 {[%emt 0:16:46]} Qxd7 {[%emt 0:01:18]} 17. Bxg7 {[%emt 0:01:12]} Kxg7 {[%emt 0:00:06]} 18. Rc4 {[%emt 0:03:08]} Nb6 {[%emt 0:01:41]} 19. Re4 {[%emt 0:02:37]} a6 {[%emt 0:03:59]} 20. Bxc6 {[%emt 0:01:30]} bxc6 {[%emt 0:01:03]} 21. f5 {[%emt 0:01:28]} Nd5 {[%emt 0:04:06]} 22. Rh4 {[%emt 0:02:40]} Rab8 {[%emt 0:00:49]} 23. Rf3 {[%emt 0:01:09]} Rb4 {[%emt 0:02:13]} 24. Qa1+ {[%emt 0:03:34]} Kg8 {[%emt 0:01:12]} 25. Rxh7 {[%emt 0:02:10]} Nf6 {[%emt 0:00:43]} 26. Rh6 {[%emt 0:01:18]} Kg7 {[%emt 0:00:10]} 27. Rfh3 {[%emt 0:00:35]} Rg8 {[%emt 0:00:03]} 28. fxg6 {[%emt 0:00:38]} fxg6 {[%emt 0:00:12]} 29. Rh7+ 1-0

[Event "WYCC U16 Girls 2019"]
[Site "Mumbai"]
[Date "2019.10.10"]
[Round "9.6"]
[White "Kvendseth, Thyra"]
[Black "Zhang, Xiao"]
[Result "0-1"]
[ECO "D52"]
[WhiteElo "1989"]
[BlackElo "2053"]
[Annotator "NA"]
[PlyCount "76"]
[EventDate "2019.10.02"]
[EventType "swiss"]
[EventCountry "IND"]
[SourceTitle "playchess.com"]
[Source "ChessBase"]
[SourceQuality "1"]
[TimeControl "5400+30"]

1. d4 {[%emt 0:00:00]} Nf6 {[%emt 0:00:23]} 2. Nf3 {[%emt 0:00:36]} e6 {[%emt 0:00:18]} 3. c4 {[%emt 0:05:17]} d5 {[%emt 0:00:17]} 4. Bg5 {[%emt 0:02:54]} Nbd7 {[%emt 0:04:43]} 5. Nc3 {[%emt 0:03:55]} c6 {[%emt 0:00:12]} 6. e3 {[%emt 0:00:32]} Qa5 {[%emt 0:00:22]} 7. Bxf6 {[%emt 0:08:15]} Nxf6 {[%emt 0:01:05]} 8. Bd3 {[%emt 0:00:43]} dxc4 {[%emt 0:06:33]} 9. Bxc4 {[%emt 0:00:09]} b5 {[%emt 0:00:23]} 10. Bb3 {[%emt 0:04:49]} Bb7 {[%emt 0:01:23]} 11. O-O {[%emt 0:02:32]} Be7 {[%emt 0:02:25]} 12. Rc1 {[%emt 0:03:10]} O-O {[%emt 0:01:01]} 13. Qd2 {[%emt 0:04:58]} Qb6 {[%emt 0:09:16]} 14. Ne5 {[%emt 0:09:48]} c5 {[%emt 0:03:19]} 15. dxc5 {[%emt 0:03:07]} Bxc5 {[%emt 0:00:13]} 16. Rfd1 {[%emt 0:02:18]} Qc7 {[%emt 0:04:05]} 17. f4 {[%emt 0:04:39]} Qb6 {[%emt 0:02:03]} 18. Re1 {[%emt 0:01:18]} Rad8 {[%emt 0:02:23]} 19. Qe2 {[%emt 0:01:09]} a6 {[%emt 0:11:10]} 20. Nd3 {[%emt 0:06:50]} Be7 {[%emt 0:04:24]} 21. Kh1 {[%emt 0:02:07]} h5 {[%emt 0:06:43]} 22. Nf2 {[%emt 0:05:18]} Bc5 {[%emt 0:02:29]} 23. Bc2 {[%emt 0:03:58]} Bb4 {[%emt 0:06:25]} 24. Bb1 {[%emt 0:04:00]} Rc8 {[%emt 0:01:18]} 25. a3 {[%emt 0:03:09]} Bxc3 {[%emt 0:00:20]} 26. bxc3 {[%emt 0:00:12]} Qa5 27. Qb2 {[%emt 0:00:36]} Nd5 {[%emt 0:03:15]} 28. Be4 {[%emt 0:01:44]} Rc4 {[%emt 0:01:08]} 29. Bxd5 {[%emt 0:01:19]} Bxd5 {[%emt 0:00:07]} 30. Nd3 {[%emt 0:01:25]} Rfc8 {[%emt 0:01:07]} 31. Nb4 {[%emt 0:00:39]} Bb7 {[%emt 0:00:26]} 32. Red1 {[%emt 0:04:13]} Qc7 {[%emt 0:00:26]} 33. Na2 {[%emt 0:00:37]} e5 {[%emt 0:01:49]} 34. fxe5 {[%emt 0:02:15]} Qxe5 {[%emt 0:00:15]} 35. Qf2 {[%emt 0:00:22]} Rg4 {[%emt 0:00:40]} 36. Rg1 {[%emt 0:00:36]} Rcc4 {[%emt 0:00:39]} 37. e4 {[%emt 0:03:09]} Rcxe4 {[%emt 0:00:23]} 38. Rcf1 {[%emt 0:03:59]} Ref4 {[%emt 0:00:18]} 0-1

[Event "WYCC U16 Girls 2019"]
[Site "Mumbai"]
[Date "2019.10.10"]
[Round "9.7"]
[White "Al Maamari, Wafia Darwish"]
[Black "Beydullayeva, Govhar"]
[Result "0-1"]
[ECO "B94"]
[WhiteElo "1673"]
[BlackElo "2289"]
[Annotator "NA"]
[PlyCount "82"]
[EventDate "2019.10.02"]
[EventType "swiss"]
[EventCountry "IND"]
[SourceTitle "playchess.com"]
[Source "ChessBase"]
[SourceQuality "1"]
[TimeControl "5400+30"]

1. e4 {[%emt 0:03:57]} c5 {[%emt 0:00:00]} 2. Nf3 {[%emt 0:00:11]} d6 {[%emt 0:00:00]} 3. d4 {[%emt 0:00:06]} cxd4 {[%emt 0:00:00]} 4. Nxd4 {[%emt 0:00:05]} Nf6 {[%emt 0:00:00]} 5. Nc3 {[%emt 0:00:06]} a6 {[%emt 0:00:00]} 6. Bg5 {[%emt 0:00:07]} Nbd7 {[%emt 0:00:00]} 7. Bc4 {[%emt 0:00:52]} Qb6 {[%emt 0:00:40]} 8. Bb3 {[%emt 0:00:25]} e6 {[%emt 0:00:27]} 9. Qd2 {[%emt 0:01:10]} h6 {[%emt 0:03:03]} 10. Bxf6 {[%emt 0:02:27]} Nxf6 {[%emt 0:00:12]} 11. O-O-O {[%emt 0:00:58]} Be7 {[%emt 0:00:41]} 12. f4 {[%emt 0:02:34]} Qc7 {[%emt 0:19:59]} 13. Kb1 {[%emt 0:07:09]} b5 14. a3 {[%emt 0:04:23]} Bd7 {[%emt 0:14:33]} 15. Rhe1 {[%emt 0:04:35]} Rd8 {[%emt 0:06:12]} 16. f5 {[%emt 0:05:56]} e5 {[%emt 0:03:13]} 17. Nf3 {[%emt 0:01:07]} a5 {[%emt 0:04:34]} 18. g4 {[%emt 0:04:04]} b4 {[%emt 0:13:35]} 19. axb4 {[%emt 0:01:45]} axb4 {[%emt 0:00:03]} 20. Na2 {[%emt 0:06:22]} Bc6 {[%emt 0:04:09]} 21. Qxb4 {[%emt 0:05:00]} O-O {[%emt 0:07:52]} 22. Qc4 {[%emt 0:11:02]} Qb7 {[%emt 0:03:41]} 23. g5 {[%emt 0:06:53]} Bb5 {[%emt 0:05:44]} 24. Qc3 {[%emt 0:10:03]} Nxe4 {[%emt 0:00:07]} 25. Qe3 {[%emt 0:00:52]} Nxg5 {[%emt 0:01:31]} 26. Nh4 {[%emt 0:01:12]} d5 {[%emt 0:07:01]} 27. Qxe5 {[%emt 0:05:25]} Bf6 {[%emt 0:00:03]} 28. Qf4 {[%emt 0:05:37]} Bc4 {[%emt 0:00:24]} 29. Nf3 {[%emt 0:04:53]} Ra8 {[%emt 0:03:11]} 30. Nd2 {[%emt 0:03:01]} Rxa2 {[%emt 0:02:52]} 31. Kxa2 {[%emt 0:01:51]} Ra8+ {[%emt 0:00:04]} 32. Kb1 {[%emt 0:00:03]} Qa6 {[%emt 0:00:03]} 33. c3 {[%emt 0:00:16]} Bd3+ {[%emt 0:00:15]} 34. Kc1 {[%emt 0:00:13]} Qa1+ {[%emt 0:00:34]} 35. Nb1 {[%emt 0:00:01]} Qxb1+ {[%emt 0:01:44]} 36. Kd2 {[%emt 0:00:08]} Qxb2+ {[%emt 0:00:21]} 37. Kxd3 {[%emt 0:00:32]} Qxc3+ {[%emt 0:00:42]} 38. Ke2 {[%emt 0:00:05]} Qxb3 {[%emt 0:00:30]} 39. Rd3 {[%emt 0:01:46]} Qb2+ {[%emt 0:00:31]} 40. Qd2 {[%emt 0:00:14]} Qe5+ {[%emt 0:00:25]} 41. Kf1 {[%emt 0:00:53]} Qxf5+ {[%emt 0:00:07]} 0-1

[Event "WYCC U16 Girls 2019"]
[Site "Mumbai"]
[Date "2019.10.10"]
[Round "9.8"]
[White "Mrudul Dehankar"]
[Black "Maciulaityte, Barbora"]
[Result "1-0"]
[ECO "B77"]
[WhiteElo "2227"]
[BlackElo "1682"]
[Annotator "NA"]
[PlyCount "97"]
[EventDate "2019.10.02"]
[EventType "swiss"]
[EventCountry "IND"]
[SourceTitle "playchess.com"]
[Source "ChessBase"]
[SourceQuality "1"]
[TimeControl "5400+30"]

1. e4 c5 2. Nf3 d6 3. d4 cxd4 4. Nxd4 Nf6 5. Nc3 g6 6. Be3 Bg7 7. f3 O-O 8. Bc4 Nc6 9. Qd2 Bd7 10. h4 Ne5 11. Bb3 Qa5 12. O-O-O Rfc8 13. Kb1 Nc4 14. Bxc4 Rxc4 15. Nb3 Qc7 16. Bd4 a5 {B79: Sicilian Dragon: Yugoslav Attack, 9 Bc4 Bd7 10 0-0-0 Qa5} (16... Be6 17. h5 a5 18. a4 b5 19. Nxb5 Qb8 20. hxg6 hxg6 21. Nc3 Rb4 22. Rh4 Bxb3 23. cxb3 Rxb3 24. Nb5 Rb4 25. Qc2 Qb7 26. g4 {½-½ (52) Smirnov,P (2636)-Chuprov,D (2554) Krasnoyarsk 2007}) 17. Bxf6 exf6 18. Qxd6 Be6 19. Qxc7 Rxc7 20. Nd5 Bxd5 21. Rxd5 b6 $146 ({Predecessor:} 21... a4 22. Nd4 Rac8 23. c3 Rc5 24. Rd7 {1-0 (54) Lopez Perez,A-Perez Martin,G Spain 1987}) 22. Rhd1 $18 Rac8 23. c3 Bf8 24. Rb5 a4 25. Nc1 Rc6 26. Ne2 Bc5 27. Nf4 Kg7 28. h5 Re8 29. Rd5 Be3 30. Ne2 Bc5 31. Nc1 Rec8 32. Kc2 Bf2 33. Ne2 Bc5 34. Nf4 Be3 35. Ne2 Bc5 36. a3 R6c7 37. Nf4 Be3 38. Nd3 Rc6 39. Rd7 Ra8 40. Rbd5 Rc4 41. Rb7 gxh5 42. Rdd7 Rf8 43. Nb4 Bf2 44. Nd5 Rc6 45. Kd3 h4 46. f4 Bc5 47. f5 h6 48. Nf4 Kg8 49. Ng6 1-0

[Event "WYCC U16 Girls 2019"]
[Site "Mumbai"]
[Date "2019.10.10"]
[Round "9.9"]
[White "Noshin, Anjum"]
[Black "Demchenko, Svitlana"]
[Result "0-1"]
[ECO "B43"]
[WhiteElo "1793"]
[BlackElo "1953"]
[Annotator "NA"]
[PlyCount "116"]
[EventDate "2019.10.02"]
[EventType "swiss"]
[EventCountry "IND"]
[SourceTitle "playchess.com"]
[Source "ChessBase"]
[SourceQuality "1"]
[TimeControl "5400+30"]

1. e4 {[%emt 0:00:00]} c5 {[%emt 0:00:00]} 2. Nf3 {[%emt 0:00:00]} e6 {[%emt 0:00:00]} 3. d4 {[%emt 0:00:00]} cxd4 {[%emt 0:00:00]} 4. Nxd4 {[%emt 0:00:07]} a6 {[%emt 0:00:01]} 5. Nc3 {[%emt 0:00:21]} b5 {[%emt 0:00:09]} 6. f4 {[%emt 0:07:55]} Bb7 {[%emt 0:01:20]} 7. Bd3 {[%emt 0:02:04]} Qb6 {[%emt 0:02:19]} 8. Nb3 {[%emt 0:04:00]} d6 {[%emt 0:02:02]} 9. Qe2 {[%emt 0:01:53]} Nf6 {[%emt 0:01:24]} 10. a3 {[%emt 0:01:47]} Be7 {[%emt 0:01:44]} 11. Bd2 {[%emt 0:06:08]} Nc6 {[%emt 0:07:08]} 12. O-O-O {[%emt 0:02:11]} Qc7 {[%emt 0:03:42]} 13. Rhf1 {[%emt 0:07:35]} b4 {[%emt 0:06:06]} 14. axb4 {[%emt 0:07:44]} Nxb4 {[%emt 0:00:23]} 15. Kb1 {[%emt 0:01:06]} Nxd3 {[%emt 0:08:59]} 16. Qxd3 {[%emt 0:02:10]} O-O {[%emt 0:00:07]} 17. f5 {[%emt 0:01:52]} a5 {[%emt 0:14:49]} 18. fxe6 {[%emt 0:29:53]} Ba6 {[%emt 0:07:24]} 19. exf7+ {[%emt 0:01:26]} Rxf7 {[%emt 0:03:27]} 20. Nb5 {[%emt 0:03:39]} Qb7 {[%emt 0:05:39]} 21. N3d4 {[%emt 0:00:45]} Qxe4 {[%emt 0:03:43]} 22. Qxe4 {[%emt 0:02:16]} Nxe4 {[%emt 0:00:01]} 23. Rxf7 {[%emt 0:01:25]} Kxf7 {[%emt 0:01:09]} 24. Nc7 {[%emt 0:02:32]} Nxd2+ {[%emt 0:00:30]} 25. Rxd2 {[%emt 0:00:07]} Ra7 {[%emt 0:00:03]} 26. Nxa6 {[%emt 0:06:36]} Rxa6 {[%emt 0:00:05]} 27. Nf5 {[%emt 0:00:33]} Bf8 {[%emt 0:01:44]} 28. Rd5 {[%emt 0:05:12]} g6 {[%emt 0:03:34]} 29. Ne3 {[%emt 0:00:24]} Ke6 {[%emt 0:01:59]} 30. Rb5 {[%emt 0:01:19]} Bh6 {[%emt 0:06:41]} 31. Nc4 {[%emt 0:00:37]} Rc6 {[%emt 0:02:57]} 32. Nxa5 {[%emt 0:00:50]} Rc5 {[%emt 0:00:04]} 33. Rxc5 {[%emt 0:00:28]} dxc5 {[%emt 0:00:03]} 34. Ka2 {[%emt 0:00:53]} Bf4 {[%emt 0:01:11]} 35. h3 {[%emt 0:00:48]} Bc7 {[%emt 0:00:01]} 36. Nc4 {[%emt 0:00:38]} Kf5 {[%emt 0:04:29]} 37. Kb3 {[%emt 0:00:37]} Kf4 {[%emt 0:01:17]} 38. Ka4 {[%emt 0:00:32]} Kg3 {[%emt 0:00:37]} 39. Kb5 {[%emt 0:00:05]} Kxg2 {[%emt 0:00:38]} 40. Kxc5 {[%emt 0:00:08]} Kxh3 {[%emt 0:00:09]} 41. b4 {[%emt 0:00:31]} g5 {[%emt 0:03:28]} 42. b5 {[%emt 0:00:07]} g4 {[%emt 0:00:09]} 43. b6 {[%emt 0:00:03]} Bf4 {[%emt 0:00:00]} 44. b7 {[%emt 0:00:00]} g3 {[%emt 0:00:00]} 45. Nd6 {[%emt 0:00:00]} g2 {[%emt 0:00:00]} 46. b8=Q {[%emt 0:00:00]} g1=Q+ {[%emt 0:00:00]} 47. Kc6 {[%emt 0:00:00]} Qg2+ {[%emt 0:00:00]} 48. Kd7 {[%emt 0:00:00]} Qxc2 {[%emt 0:00:00]} 49. Qb7 {[%emt 0:00:00]} Qd3 {[%emt 0:00:00]} 50. Qh1+ {[%emt 0:00:00]} Bh2 {[%emt 0:00:00]} 51. Ke8 {[%emt 0:00:00]} Qxd6 {[%emt 0:00:00]} 52. Qf3+ {[%emt 0:00:00]} Kh4 {[%emt 0:00:00]} 53. Qe4+ {[%emt 0:00:00]} Kg5 {[%emt 0:00:00]} 54. Qxh7 {[%emt 0:00:00]} Qb8+ {[%emt 0:00:00]} 55. Kf7 {[%emt 0:00:00]} Qc7+ {[%emt 0:00:00]} 56. Kg8 {[%emt 0:00:00]} Qd8+ {[%emt 0:00:00]} 57. Kf7 {[%emt 0:00:00]} Qd7+ {[%emt 0:00:00]} 58. Kg8 {[%emt 0:00:00]} Qe8+ {[%emt 0:00:00]} 0-1

[Event "WYCC U16 Girls 2019"]
[Site "Mumbai"]
[Date "2019.10.10"]
[Round "9.10"]
[White "Moncada Correa, Sara"]
[Black "Savitha Shri B"]
[Result "0-1"]
[ECO "E80"]
[WhiteElo "1939"]
[BlackElo "1916"]
[Annotator "NA"]
[PlyCount "84"]
[EventDate "2019.10.02"]
[EventType "swiss"]
[EventCountry "IND"]
[SourceTitle "playchess.com"]
[Source "ChessBase"]
[SourceQuality "1"]
[TimeControl "5400+30"]

1. d4 Nf6 2. c4 g6 3. Nc3 Bg7 4. e4 d6 5. f3 e5 6. Nge2 Nc6 7. Be3 a6 8. d5 Ne7 9. Qd2 h5 10. h4 Bd7 11. Ng3 Qb8 12. b4 c6 13. c5 cxd5 14. exd5 O-O 15. Rd1 Rc8 16. Be2 Nf5 17. Nxf5 Bxf5 18. Kf2 Re8 19. Rdg1 Qc8 20. Na4 Qd8 21. Nb6 Rb8 22. Rc1 e4 23. Bc4 Nd7 24. Nxd7 Qxd7 25. c6 bxc6 26. dxc6 Qc7 27. Bxa6 d5 28. fxe4 Rxe4 29. a3 d4 30. Bg5 Rg4 31. Rh3 Re8 32. Bd3 Rxg5 33. Qxg5 Bxh3 34. Bxg6 fxg6 35. Qd5+ Be6 36. Qe4 Bf7 37. Qf3 Re3 38. Qd1 Qg3+ 39. Kf1 Be5 40. b5 Qf4+ 41. Kg1 Qh2+ 42. Kf1 Qh1+ 0-1

[Event "WYCC U16 Girls 2019"]
[Site "Mumbai"]
[Date "2019.10.10"]
[Round "9.11"]
[White "Juhasz, Judit"]
[Black "Divyabharathi Masanam"]
[Result "1/2-1/2"]
[ECO "B35"]
[WhiteElo "2004"]
[BlackElo "1636"]
[Annotator "NA"]
[PlyCount "68"]
[EventDate "2019.10.02"]
[EventType "swiss"]
[EventCountry "IND"]
[SourceTitle "playchess.com"]
[Source "ChessBase"]
[SourceQuality "1"]
[TimeControl "5400+30"]

1. e4 c5 2. Nf3 g6 3. d4 cxd4 4. Nxd4 Bg7 5. Nc3 Nc6 6. Be3 Nf6 7. Bc4 O-O 8. Bb3 Ng4 9. Qxg4 Nxd4 10. Qd1 Nxb3 11. axb3 b6 12. h4 Bb7 13. h5 Qc7 14. Bd4 Rfd8 15. Bxg7 Kxg7 16. Qd4+ f6 17. O-O-O g5 18. h6+ Kh8 19. g3 Rac8 20. Rh5 d5 21. Qe3 dxe4 22. Rxd8+ Rxd8 23. Nxe4 Qe5 24. Nd2 Qxe3 25. fxe3 Kg8 26. Rh2 Kf7 27. Kd1 Bf3+ 28. Ke1 Bg4 29. Kf1 Kg6 30. Ke1 Kf5 31. Rf2+ Ke5 32. Rh2 Kf5 33. Rf2+ Ke5 34. Rh2 Kf5 1/2-1/2

[Event "WYCC U16 Girls 2019"]
[Site "Mumbai"]
[Date "2019.10.10"]
[Round "9.12"]
[White "Anushka Gupta"]
[Black "Lakshmi C"]
[Result "0-1"]
[ECO "B20"]
[WhiteElo "1541"]
[BlackElo "1859"]
[Annotator "NA"]
[PlyCount "90"]
[EventDate "2019.10.02"]
[EventType "swiss"]
[EventCountry "IND"]
[SourceTitle "playchess.com"]
[Source "ChessBase"]
[SourceQuality "1"]
[TimeControl "5400+30"]

1. e4 {[%emt 0:00:00]} c5 {[%emt 0:00:00]} 2. Ne2 {[%emt 0:00:00]} g6 {[%emt 0:00:38]} 3. Nbc3 {[%emt 0:00:27]} Bg7 {[%emt 0:00:45]} 4. g3 {[%emt 0:00:11]} Nc6 {[%emt 0:00:11]} 5. Bg2 {[%emt 0:00:23]} e5 {[%emt 0:01:30]} 6. Nd5 {[%emt 0:02:27]} Nge7 {[%emt 0:01:20]} 7. Nec3 {[%emt 0:00:44]} O-O {[%emt 0:03:01]} 8. d3 {[%emt 0:00:41]} Rb8 {[%emt 0:02:11]} 9. Bg5 {[%emt 0:03:44]} f6 {[%emt 0:02:39]} 10. Be3 {[%emt 0:00:36]} d6 {[%emt 0:00:05]} 11. a4 {[%emt 0:01:30]} a6 {[%emt 0:00:46]} 12. O-O {[%emt 0:01:50]} b5 {[%emt 0:01:15]} 13. axb5 {[%emt 0:01:15]} axb5 {[%emt 0:00:02]} 14. Qd2 {[%emt 0:01:12]} Rf7 {[%emt 0:18:29]} 15. f4 {[%emt 0:06:02]} b4 {[%emt 0:01:13]} 16. Ne2 {[%emt 0:05:07]} f5 {[%emt 0:19:19]} 17. fxe5 {[%emt 0:01:57]} Bxe5 {[%emt 0:01:46]} 18. d4 {[%emt 0:06:44]} cxd4 {[%emt 0:05:11]} 19. Nxd4 {[%emt 0:01:00]} Nxd4 {[%emt 0:08:04]} 20. Nxe7+ {[%emt 0:04:39]} Qxe7 21. Bxd4 {[%emt 0:00:08]} Be6 {[%emt 0:02:08]} 22. exf5 {[%emt 0:04:31]} gxf5 {[%emt 0:02:15]} 23. Rfe1 {[%emt 0:04:19]} Qc7 {[%emt 0:05:10]} 24. Kh1 {[%emt 0:10:53]} Bc8 {[%emt 0:08:59]} 25. Ra7 {[%emt 0:06:20]} Bb7 {[%emt 0:00:32]} 26. Rxb7 {[%emt 0:00:32]} Rxb7 {[%emt 0:00:22]} 27. Bd5 {[%emt 0:00:31]} Rb5 {[%emt 0:02:30]} 28. Bxf7+ {[%emt 0:02:27]} Kxf7 {[%emt 0:02:50]} 29. Bxe5 {[%emt 0:01:01]} Qc6+ {[%emt 0:00:28]} 30. Kg1 {[%emt 0:01:55]} dxe5 {[%emt 0:00:08]} 31. Rd1 {[%emt 0:03:07]} Kg6 {[%emt 0:03:38]} 32. h4 {[%emt 0:03:13]} h6 {[%emt 0:00:17]} 33. Qd6+ {[%emt 0:14:37]} Qxd6 {[%emt 0:00:03]} 34. Rd3 Qd5 35. Rxd5 {[%emt 0:00:36]} Kh5 {[%emt 0:01:01]} 36. Rd6 {[%emt 0:01:58]} Kg4 {[%emt 0:01:50]} 37. Rg6+ {[%emt 0:03:39]} Kf3 {[%emt 0:00:43]} 38. Rxh6 {[%emt 0:01:27]} e4 {[%emt 0:02:20]} 39. Re6 {[%emt 0:00:10]} e3 {[%emt 0:00:40]} 40. h5 {[%emt 0:00:26]} e2 {[%emt 0:00:34]} 41. h6 {[%emt 0:00:16]} Rb6 {[%emt 0:00:24]} 42. Re5 {[%emt 0:00:45]} Rxh6 {[%emt 0:00:16]} 43. Rxf5+ {[%emt 0:00:07]} Ke4 {[%emt 0:00:09]} 44. Kf2 {[%emt 0:00:42]} Rh2+ {[%emt 0:00:22]} 45. Ke1 {[%emt 0:00:06]} Kxf5 {[%emt 0:00:03]} 0-1

[Event "WYCC U16 Girls 2019"]
[Site "Mumbai"]
[Date "2019.10.11"]
[Round "10.1"]
[White "Zhang, Xiao"]
[Black "Garifullina, Leya"]
[Result "1/2-1/2"]
[ECO "D26"]
[WhiteElo "2053"]
[BlackElo "2330"]
[Annotator "ChessBase"]
[PlyCount "69"]
[EventDate "2019.10.02"]
[EventType "swiss"]
[EventCountry "IND"]
[SourceTitle "playchess.com"]
[Source "ChessBase"]
[SourceQuality "1"]
[TimeControl "5400+30"]

1. d4 {[%emt 0:00:00]} d5 {[%emt 0:00:00]} 2. c4 {[%emt 0:00:00]} e6 {[%emt 0:00:00]} 3. Nf3 {[%emt 0:00:24]} dxc4 {[%emt 0:00:04]} 4. e3 {[%emt 0:01:14]} Nf6 {[%emt 0:00:18]} 5. Bxc4 {[%emt 0:00:05]} c5 {[%emt 0:00:09]} 6. O-O {[%emt 0:00:21]} cxd4 {[%emt 0:00:09]} 7. exd4 {[%emt 0:00:16]} Be7 {[%emt 0:00:07]} 8. Nc3 {[%emt 0:01:03]} O-O {[%emt 0:00:11]} 9. Bf4 {[%emt 0:01:49]} Nc6 {[%emt 0:01:13]} 10. Rc1 {[%emt 0:00:44]} b6 {[%emt 0:07:42]} 11. Re1 {[%emt 0:18:18]} Na5 {[%emt 0:03:00]} 12. Bb5 {[%emt 0:02:43]} Bb7 {[%emt 0:00:28]} 13. Ne5 {[%emt 0:00:25]} Rc8 {[%emt 0:01:17]} 14. Bg3 {[%emt 0:02:22]} a6 {[%emt 0:00:34]} 15. Be2 {[%emt 0:01:44]} b5 {[%emt 0:00:42]} 16. a3 {[%emt 0:07:53]} Qb6 {[%emt 0:02:16]} 17. b4 {[%emt 0:03:52]} Nc6 {[%emt 0:01:52]} 18. Bf3 {[%emt 0:01:48]} Rfd8 {[%emt 0:01:26]} 19. Nxc6 {[%emt 0:00:51]} Bxc6 {[%emt 0:00:23]} 20. Be5 {[%emt 0:00:15]} Bxf3 {[%emt 0:02:15]} 21. Qxf3 {[%emt 0:00:15]} Nd7 {[%emt 0:00:59]} 22. Red1 {[%emt 0:09:49]} Nxe5 {[%emt 0:02:12]} 23. dxe5 {[%emt 0:00:05]} Rxd1+ {[%emt 0:00:10]} 24. Qxd1 {[%emt 0:00:22]} Bf8 {[%emt 0:02:20]} 25. Ne4 {[%emt 0:11:48]} Rxc1 {[%emt 0:04:31]} 26. Qxc1 {[%emt 0:00:02]} a5 {[%emt 0:00:18]} 27. Nc5 {[%emt 0:00:31]} axb4 {[%emt 0:02:20]} 28. axb4 {[%emt 0:00:13]} Qc6 {[%emt 0:01:01]} 29. Qc3 {[%emt 0:02:00]} Qd5 {[%emt 0:03:34]} 30. g3 {[%emt 0:01:08]} Qd1+ {[%emt 0:04:43]} 31. Kg2 {[%emt 0:00:05]} Qd5+ {[%emt 0:00:51]} 32. Kg1 {[%emt 0:00:12]} Qd1+ {[%emt 0:18:41]} 33. Kg2 {[%emt 0:00:16]} Qd5+ {[%emt 0:03:39]} 34. Kg1 {[%emt 0:01:34]} Qd1+ {[%emt 0:00:24]} 35. Kg2 {[%emt 0:00:36]} 1/2-1/2